bitfinex-derivatives/quotes_ETHF0:USTF0_20251204
["timestamp","ask_amount","ask_price","bid_price","bid_amount"]
[1764866402602,14.7441,3184.6,3184.1,3.2078]
[1764866403703,3.21056151,3184.8,3184.5,7.7362]
[1764866403896,3.21056151,3184.8,3184.1,3.2078]
[1764866403897,7.5421,3184.6,3184.1,3.2078]
[1764866404089,3.21056151,3184.8,3184.1,3.2078]
[1764866404090,14.5246,3184.2,3184.1,3.2078]
[1764866404497,7.59866151,3184.8,3184.1,10.9197]
[1764866404999,0.00276151,3184.8,3184.7,14.9046]
[1764866407699,14.52736151,3184.8,3184.5,3.36478]
[1764866407900,14.52736151,3184.8,3184.5,3.2078]
[1764866407901,14.5246,3184.6,3184.5,3.2078]
[1764866408293,15.25927521,3184.6,3184.5,3.2078]
[1764866410396,8.27677521,3184.6,3184.5,3.2078]
[1764866410596,0.73467521,3184.6,3184.5,10.9197]
[1764866410809,14.5246,3184.6,3184.5,3.2078]
[1764866411102,15.25927521,3184.6,3184.5,3.2078]
[1764866412604,8.27677521,3184.6,3184.5,3.2078]
[1764866413008,0.73467521,3184.6,3184.5,18.1124]
[1764866413202,8.27677521,3184.6,3184.5,3.2078]
[1764866413404,15.25927521,3184.6,3184.5,3.2078]
[1764866415905,8.27677521,3184.6,3184.5,10.9197]
[1764866416308,0.00276151,3184.8,3184.7,14.9046]
[1764866417701,7.54486151,3184.8,3184.5,3.36477]
[1764866417901,0.00276151,3184.8,3184.7,14.9046]
[1764866418710,8.27944742,3184.8,3184.7,7.7119]
[1764866419112,0.73734742,3184.8,3184.7,14.9046]
[1764866419514,0.00276151,3184.8,3184.7,14.9046]
[1764866419811,0.73734742,3184.8,3184.7,14.9046]
[1764866420013,0.5549088,3184.8,3184.7,21.06157]
[1764866420206,7.3781,3186.0,3185.4,14.9046]
[1764866420409,14.5246,3185.2,3184.6,3.2078]
[1764866420608,55.3246,3185.2,3184.6,16.2098]
[1764866421019,55.3246,3185.2,3184.6,3.2078]
[1764866421210,55.33218123,3185.2,3184.6,3.21577735]
[1764866421407,7.5421,3184.7,3184.6,3.21577735]
[1764866421608,14.5246,3184.7,3184.6,3.21577735]
[1764866421812,7.5421,3184.7,3184.6,10.92767735]
[1764866422008,14.5246,3184.7,3184.6,3.21577735]
[1764866422910,7.5421,3184.7,3184.6,10.92767735]
[1764866423109,40.80758123,3185.2,3184.6,18.12037735]
[1764866423520,7.5421,3184.7,3184.6,18.12037735]
[1764866424722,3.2078,3184.7,3183.9,31.0984]
[1764866425319,3.2078,3184.7,3184.0,4.0999]
[1764866425718,3.2078,3184.7,3184.0,4.10836217]
[1764866426325,3.2078,3184.7,3184.0,17.08636217]
[1764866427817,3.2078,3184.7,3184.0,12.98646217]
[1764866428324,3.2078,3184.7,3184.0,0.00846217]
[1764866428622,3.2078,3184.7,3184.0,12.97746217]
[1764866431324,3.2078,3184.7,3184.0,17.07736217]
[1764866432224,0.73078837,3184.6,3184.0,4.10836217]
[1764866432427,3.2078,3184.7,3184.0,4.10836217]
[1764866434428,3.2078,3184.7,3184.0,4.26536217]
[1764866434932,10.7499,3184.7,3184.6,14.7182]
[1764866435125,17.4196,3184.7,3184.6,7.7119]
[1764866435326,4.3881,3185.0,3184.6,14.7182]
[1764866435628,3.2078,3185.1,3184.6,14.7182]
[1764866435629,10.0108,3185.1,3185.0,6.7354]
[1764866435822,10.0108,3185.1,3185.0,13.7417]
[1764866436426,3.2078,3185.1,3185.0,17.6197]
[1764866436729,0.00758123,3185.2,3185.1,13.7417]
[1764866438132,0.00758123,3185.2,3185.1,13.89865]
[1764866439929,0.00758123,3185.2,3185.1,26.81265]
[1764866442032,13.4727,3185.0,3184.5,7.24278]
[1764866442329,13.4727,3184.6,3184.5,3.2078]
[1764866442730,13.4727,3184.6,3184.5,9.9432]
[1764866442934,13.4727,3184.6,3184.5,3.2078]
[1764866443830,13.4727,3183.2,3182.1,3.36489]
[1764866444131,2.3662492,3182.9,3182.0,3.878]
[1764866444434,3.2078,3182.5,3182.4,13.7417]
[1764866444728,3.21184894,3182.5,3182.4,17.62318529]
[1764866445135,3.21184894,3182.5,3182.4,13.74518529]
[1764866445323,3.21184894,3182.5,3182.4,0.00348529]
[1764866445634,3.21184894,3182.5,3182.4,13.74518529]
[1764866445836,0.00404894,3182.5,3182.4,17.62318529]
[1764866446433,0.00404894,3182.5,3182.4,13.74518529]
[1764866446937,0.00404894,3182.5,3182.4,6.73888529]
[1764866447134,10.01484894,3182.5,3182.4,6.73888529]
[1764866448025,3.21184894,3182.5,3182.4,13.01948529]
[1764866448637,0.00404894,3182.5,3182.4,13.01948529]
[1764866449138,0.00404894,3182.5,3182.4,29.89878529]
[1764866449541,6.7645,3181.4,3180.9,3.2078]
[1764866449835,13.24882894,3182.5,3181.6,13.0933]
[1764866449836,3.2078,3181.7,3181.6,13.0933]
[1764866450037,44.0078,3181.7,3181.6,13.0933]
[1764866450241,0.00404894,3182.5,3182.0,17.0676]
[1764866450537,0.00404894,3182.5,3182.4,13.0933]
[1764866450938,0.00404894,3182.5,3182.4,6.8127]
[1764866451737,0.00404894,3182.5,3182.4,13.0933]
[1764866451940,0.00404894,3182.5,3182.2,13.06009]
[1764866452236,0.00404894,3182.5,3182.4,13.0933]
[1764866454231,0.00404894,3182.5,3182.4,17.0676]
[1764866454639,3.2078,3182.7,3182.6,13.0933]
[1764866454937,3.2078,3183.2,3183.1,13.0933]
[1764866455136,6.358,3182.2,3182.0,0.00245562]
[1764866455442,13.1225,3182.1,3182.0,0.00245562]
[1764866455636,47.5669887,3182.1,3182.0,0.00245562]
[1764866455835,47.5669887,3182.1,3182.0,0.01091779]
[1764866457538,47.5669887,3182.1,3182.0,6.82361779]
[1764866457936,47.5669887,3182.1,3182.0,0.01091779]
[1764866459746,0.0024887,3182.1,3182.0,17.07851779]
[1764866460441,13.1249887,3182.1,3182.0,0.01091779]
[1764866461147,6.7669887,3182.1,3182.0,6.82361779]
[1764866461350,0.0024887,3182.1,3182.0,17.07851779]
[1764866461541,6.7669887,3182.1,3182.0,13.10421779]
[1764866461845,6.7669887,3182.1,3181.7,0.16182491]
[1764866461846,13.1225,3181.8,3181.7,0.00471491]
[1764866462243,13.1225,3181.8,3181.7,0.01317708]
[1764866462444,0.0024887,3182.1,3181.7,13.10647708]
[1764866462744,6.7669887,3182.1,3182.0,13.0933]
[1764866462944,0.0024887,3182.1,3182.0,13.0933]
[1764866464138,3.2078,3183.8,3182.3,12.8967]
[1764866464345,3.2078,3183.8,3183.0,3.44406217]
[1764866464647,40.8,3183.7,3183.0,3.60111217]
[1764866464842,13.3441,3182.9,3182.6,7.751]
[1764866465037,13.34802033,3182.9,3182.8,0.00846217]
[1764866465233,0.00392033,3182.9,3182.8,13.06222217]
[1764866465847,3.2078,3184.0,3183.5,12.8967]
[1764866466849,0.00235183,3184.0,3183.9,6.4576]
[1764866467046,0.00235183,3184.0,3183.9,12.8967]
[1764866467855,6.5157,3183.7,3183.4,3.21251491]
[1764866468051,6.5157,3183.7,3183.6,6.4576]
[1764866468350,6.5157,3183.7,3183.6,6.46606217]
[1764866468550,13.3441,3183.5,3183.4,0.00471491]
[1764866468947,13.3441,3182.9,3182.3,3.2078]
[1764866469444,6.5157,3182.4,3182.3,3.2078]
[1764866469845,6.5157,3182.4,3182.3,3.21626217]
[1764866470344,6.5157,3182.4,3182.3,0.00846217]
[1764866470645,3.2078,3183.1,3182.7,6.4576]
[1764866470857,6.882,3183.6,3182.8,3.2078]
[1764866471049,6.882,3183.6,3182.4,3.8697]
[1764866471250,3.2078,3183.6,3182.8,0.15706]
[1764866471558,3.21015183,3184.0,3183.5,6.4391]
[1764866471745,3.21015183,3184.0,3183.9,12.8967]
[1764866471746,0.00235183,3184.0,3183.9,12.8967]
[1764866472054,0.00235183,3184.0,3183.9,6.4576]
[1764866472247,0.00235183,3184.0,3183.6,0.00471491]
[1764866472248,6.5157,3183.7,3183.6,0.00471491]
[1764866472555,13.34645183,3184.0,3183.9,0.00846217]
[1764866473052,0.00235183,3184.0,3183.9,6.46606217]
[1764866474057,0.00235183,3184.0,3183.9,12.90516217]
[1764866474652,0.00235183,3184.0,3183.9,13.06217217]
[1764866475051,0.00471491,3184.1,3184.0,13.0537]
[1764866475251,0.00471491,3184.1,3183.9,0.00846217]
[1764866475252,3.2078,3185.2,3184.7,6.4576]
[1764866475445,13.3441,3184.6,3184.1,3.2078]
[1764866475655,3.2078,3185.2,3184.5,3.2078]
[1764866476150,13.3441,3184.6,3184.5,0.00310649]
[1764866476448,16.5519,3184.6,3184.5,0.00310649]
[1764866476847,16.5519,3184.6,3184.5,0.01156866]
[1764866477048,57.3519,3184.6,3184.5,0.01156866]
[1764866478952,65.99051844,3184.6,3184.5,0.00310649]
[1764866479150,13.3441,3183.7,3183.6,0.00471491]
[1764866479654,13.3441,3183.7,3183.6,0.01317708]
[1764866480156,13.3441,3183.7,3183.6,0.01538468]
[1764866480949,3.2078,3184.0,3183.9,12.8967]
[1764866481257,3.2078,3184.0,3183.6,3.88508468]
[1764866481258,6.5157,3183.7,3183.6,0.01538468]
[1764866481451,3.2078,3184.0,3183.9,12.8967]
[1764866482350,3.2078,3184.5,3183.9,12.8967]
[1764866482546,9.7235,3184.5,3183.7,3.2078]
[1764866482946,3.2078,3184.5,3184.4,6.4576]
[1764866483145,2.6186,3184.8,3183.6,3.88508468]
[1764866483146,3.21251491,3184.9,3184.8,6.4576]
[1764866483348,13.3441,3184.4,3184.3,3.2078]
[1764866483549,57.3519,3184.4,3183.6,7.08442251]
[1764866483856,13.3441,3184.3,3184.2,0.00846217]
[1764866484357,3.6742,3184.2,3183.6,9.67232251]
[1764866484558,3.6742,3184.2,3183.7,0.00846217]
[1764866484856,13.3441,3183.7,3183.6,3.22318468]
[1764866485658,3.6742,3184.2,3183.6,6.47298468]
[1764866485867,6.5157,3183.7,3183.6,0.01538468]
[1764866486561,13.3441,3183.7,3183.6,0.01538468]
[1764866486859,6.5157,3183.7,3183.6,0.01538468]
[1764866487357,3.2078,3184.0,3183.6,6.47298468]
[1764866488460,13.3441,3183.7,3183.6,0.01538468]
[1764866488761,3.2078,3184.0,3183.6,0.01538468]
[1764866488762,9.7235,3184.0,3183.9,6.4576]
[1764866488955,9.7235,3184.0,3183.6,6.53708468]
[1764866489357,3.2078,3184.0,3183.9,12.8967]
[1764866490462,3.21251491,3184.9,3184.4,6.4576]
[1764866491056,40.8,3184.8,3184.4,6.4576]
[1764866491862,40.8,3184.8,3184.7,6.4576]
[1764866492064,3.21251491,3184.9,3184.8,6.4576]
[1764866492259,0.00471491,3184.9,3184.8,12.8967]
[1764866492754,9.72821491,3184.9,3184.5,0.15697]
[1764866493155,9.72821491,3184.9,3184.4,12.858]
[1764866493156,0.00471491,3184.9,3184.8,16.7664]
[1764866493461,0.00471491,3184.9,3184.6,3.36477]
[1764866493462,13.34881491,3184.9,3184.6,3.36477]
[1764866493661,6.22191491,3184.9,3184.6,3.36477]
[1764866493858,6.2172,3184.7,3184.6,3.36477]
[1764866494365,0.00471491,3184.9,3184.6,9.49617]
[1764866494766,15.99401491,3184.9,3184.6,0.15697]
[1764866494962,6.2172,3184.7,3184.2,3.8697]
[1764866495960,3.2078,3184.5,3183.6,6.53708468]
[1764866497261,15.9893,3184.5,3184.0,3.2078]
[1764866497459,15.9893,3184.5,3183.9,0.15701]
[1764866497659,9.425,3184.5,3184.0,3.2078]
[1764866497864,3.21251491,3184.9,3184.4,12.3051]
[1764866498259,12.7815,3184.5,3183.7,7.596]
[1764866498565,6.2172,3184.5,3183.7,7.596]
[1764866498766,12.7815,3184.2,3183.6,6.52862251]
[1764866498964,3.2078,3184.0,3183.7,0.00846217]
[1764866499157,12.7815,3183.8,3183.7,0.00846217]
[1764866499757,3.2078,3184.0,3183.7,12.31356217]
[1764866499964,12.7815,3184.0,3183.9,6.1314]
[1764866500165,12.7815,3184.0,3183.7,0.00846217]
[1764866500470,3.2078,3184.4,3183.9,12.3051]
[1764866501073,40.8,3184.3,3183.9,12.3051]
[1764866502169,40.8,3184.3,3184.2,6.1314]
[1764866502369,0.77512002,3184.3,3183.7,0.00846217]
[1764866502567,6.5643,3183.8,3183.7,0.00846217]
[1764866502865,12.7815,3183.2,3182.7,3.2078]
[1764866503567,40.8,3183.1,3182.7,3.2078]
[1764866503769,40.8,3183.1,3183.0,6.1314]
[1764866503960,3.21251491,3183.4,3183.0,6.13485668]
[1764866504162,12.7815,3183.1,3183.0,0.00345668]
[1764866504667,40.8,3183.3,3183.2,12.3051]
[1764866504870,3.21251491,3183.4,3183.3,12.3051]
[1764866505271,6.2172,3183.1,3183.0,0.00345668]
[1764866505462,6.2172,3183.1,3183.0,6.13485668]
[1764866505765,6.2172,3183.1,3183.0,12.30855668]
[1764866505969,3.21251491,3183.4,3183.0,15.88865668]
[1764866506572,3.21251491,3183.4,3183.3,6.1314]
[1764866506865,3.21251491,3183.4,3183.3,12.3051]
[1764866506866,0.00471491,3183.4,3183.3,12.3051]
[1764866508070,3.2078,3183.8,3183.3,12.3051]
[1764866509471,5.4152,3183.2,3183.1,8.64965]
[1764866509772,5.4152,3183.2,3183.1,8.4926]
[1764866510363,3.3943,3182.5,3181.5,5.2848]
[1764866510565,10.657,3181.4,3180.8,3.2078]
[1764866510762,6.03291844,3181.8,3180.1,0.15719]
[1764866510763,3.2078,3181.2,3180.1,0.15719]
[1764866510969,3.2078,3181.2,3180.3,12.886]
[1764866511470,3.2078,3180.8,3180.5,3.44377593]
[1764866511670,3.2078,3180.8,3180.5,0.00867593]
[1764866512973,3.2078,3180.8,3180.7,5.2848]
[1764866513674,3.2078,3180.8,3180.7,10.6048]
[1764866514271,0.00854229,3181.2,3181.1,10.6048]
[1764866514474,0.00854229,3181.2,3181.1,22.1688]
[1764866514671,5.4152,3181.0,3180.9,0.15715]
[1764866514875,0.00854229,3181.2,3180.9,5.44195]
[1764866515474,0.00854229,3181.2,3180.6,3.4351]
[1764866515677,3.2078,3180.9,3180.6,3.4351]
[1764866517284,3.2078,3180.9,3180.8,10.6048]
[1764866517979,0.00854229,3181.2,3180.8,10.6048]
[1764866519175,3.2078,3180.9,3180.8,10.6048]
[1764866519770,10.657,3180.6,3180.5,0.00867593]
[1764866520568,5.4152,3180.6,3180.5,0.00867593]
[1764866520769,3.2078,3180.9,3180.6,3.4351]
[1764866520984,3.2078,3180.9,3180.5,0.00867593]
[1764866521173,3.2078,3180.9,3180.8,10.6048]
[1764866522280,0.00854229,3181.2,3181.1,10.6048]
[1764866522480,0.00854229,3181.2,3181.1,5.2848]
[1764866522674,5.42374229,3181.2,3181.1,5.2848]
[1764866522875,0.00854229,3181.2,3181.1,10.6048]
[1764866523181,5.42374229,3181.2,3180.7,0.15716]
[1764866523396,0.00854229,3181.2,3181.1,5.2848]
[1764866523787,5.42374229,3181.2,3180.6,3.4351]
[1764866523989,3.2078,3180.9,3180.6,9.7071]
[1764866524290,5.5858,3180.6,3180.5,0.00867593]
[1764866524784,10.9777,3180.6,3180.0,3.4351]
[1764866524985,5.5858,3179.9,3179.8,3.2078]
[1764866525180,2.37208838,3180.3,3179.8,3.2078]
[1764866525388,40.8,3180.2,3179.8,8.592]
[1764866525789,40.8,3180.2,3179.8,5.38828469]
[1764866526186,40.8,3180.2,3180.1,5.3842]
[1764866526384,3.2078,3180.4,3180.1,10.6282]
[1764866526584,3.2078,3180.4,3180.3,10.6282]
[1764866527198,3.2078,3180.4,3180.0,3.2866]
[1764866527199,14.1855,3180.4,3180.0,3.2866]
[1764866527388,8.7936,3180.4,3180.0,3.2866]
[1764866527585,8.7936,3180.4,3180.3,5.3842]
[1764866527789,3.2078,3180.4,3180.3,5.3842]
[1764866527995,3.2078,3180.4,3180.3,10.6282]
[1764866529988,0.15719,3180.3,3179.4,3.2866]
[1764866530189,10.9777,3179.3,3178.4,3.2078]
[1764866530493,3.2078,3179.2,3178.4,3.2078]
[1764866530694,40.8,3179.1,3178.4,3.2078]
[1764866530890,40.8,3179.1,3178.1,0.15729]
[1764866531096,3.2078,3178.8,3178.7,5.3842]
[1764866531287,0.00381422,3178.8,3178.7,10.6282]
[1764866532086,10.98151422,3178.8,3178.3,3.2078]
[1764866532290,5.5858,3178.0,3177.9,3.2078]
[1764866532587,10.9777,3178.0,3176.9,3.36515]
[1764866532794,2.37208838,3178.2,3176.6,5.759]
[1764866532795,5.57988838,3177.8,3176.6,5.759]
[1764866533093,3.2078,3177.3,3176.6,5.759]
[1764866533399,3.2078,3177.3,3177.2,5.3842]
[1764866533599,8.7936,3177.3,3177.0,3.29028714]
[1764866533796,44.0078,3177.7,3177.6,5.3842]
[1764866533993,3.2078,3177.7,3177.6,10.6282]
[1764866534193,3.2078,3178.1,3177.6,10.6282]
[1764866534500,3.2078,3178.5,3178.4,5.3842]
[1764866534696,3.2078,3178.5,3178.4,10.6282]
[1764866534887,0.00381422,3178.8,3178.1,0.15729]
[1764866535093,3.2078,3178.4,3177.3,0.15733]
[1764866535395,10.9777,3177.9,3177.3,0.15733]
[1764866535590,3.2078,3177.6,3177.4,10.6282]
[1764866535992,3.2078,3177.6,3177.4,5.3842]
[1764866536192,3.2078,3177.6,3177.1,12.898]
[1764866536393,3.2078,3177.6,3177.5,10.6282]
[1764866536597,3.2078,3178.1,3177.5,10.6282]
[1764866536790,3.2078,3178.1,3177.2,0.15734]
[1764866536791,3.2078,3178.1,3177.0,3.29028714]
[1764866536996,3.2078,3177.7,3177.0,3.29028714]
[1764866537200,3.2078,3177.3,3177.0,0.00368714]
[1764866537710,3.2078,3177.8,3177.3,3.2866]
[1764866538001,3.2078,3177.8,3177.7,10.6282]
[1764866538196,40.8,3178.3,3177.3,6.4944]
[1764866538197,3.2078,3178.2,3177.3,6.4944]
[1764866538392,3.2078,3178.2,3177.4,12.893]
[1764866539102,3.2078,3178.2,3178.1,5.3842]
[1764866539399,3.2078,3178.2,3178.1,10.6282]
[1764866539599,0.00381422,3178.8,3178.1,10.78549]
[1764866539897,3.2078,3178.7,3178.6,10.6282]
[1764866540594,3.2078,3178.7,3178.4,0.15728]
[1764866540799,3.2078,3178.7,3178.6,5.3842]
[1764866541199,3.2078,3178.7,3178.4,0.15728]
[1764866541504,3.2078,3178.7,3178.6,5.3842]
[1764866541701,3.2078,3178.7,3178.6,10.6282]
[1764866541904,3.2078,3178.7,3178.6,10.78547]
[1764866542106,3.2078,3179.3,3179.2,5.3842]
[1764866542402,3.2078,3179.3,3178.5,3.2078]
[1764866542403,47.14572708,3179.3,3178.5,3.2078]
[1764866542705,46.37988838,3179.3,3178.5,3.2078]
[1764866543100,0.00471491,3179.2,3178.6,0.00471491]
[1764866544001,0.77045168,3179.2,3178.6,0.00471491]
[1764866544897,0.00471491,3179.2,3178.6,0.00471491]
[1764866545098,0.77052366,3179.2,3178.6,0.00471491]
[1764866546101,16.55758838,3178.7,3178.6,0.00471491]
[1764866546306,16.55758838,3178.7,3177.6,10.91391]
[1764866546307,17.32358181,3178.7,3177.6,10.91391]
[1764866546605,3.2078,3178.7,3177.9,3.2078]
[1764866547406,3.2078,3178.7,3178.1,0.15729]
[1764866548310,0.8017983,3178.6,3178.1,0.15729]
[1764866548509,0.8017983,3178.5,3178.4,5.3842]
[1764866548706,3.2078,3178.7,3178.5,5.3842]
[1764866548912,0.80172275,3178.6,3178.5,5.3842]
[1764866549106,11.77942275,3178.6,3177.6,3.2866]
[1764866549307,0.80172275,3178.5,3177.6,16.0136]
[1764866549509,0.80172275,3178.4,3177.7,13.03731]
[1764866549711,3.2078,3178.7,3178.6,5.3842]
[1764866549913,4.00979431,3178.7,3178.6,5.3842]
[1764866550103,9.59559431,3178.7,3178.6,5.3842]
[1764866550408,9.59559431,3178.7,3178.2,3.2866]
[1764866550706,0.80199431,3178.6,3178.5,10.6282]
[1764866551311,5.5858,3178.5,3178.0,3.2078]
[1764866551612,5.57988838,3178.7,3178.3,5.3842]
[1764866551613,0.80199431,3178.4,3178.3,5.3842]
[1764866552509,0.80199431,3178.4,3178.3,10.6282]
[1764866553108,0.80199431,3178.4,3178.3,10.78548]
[1764866553309,3.2078,3178.7,3178.6,10.78547]
[1764866553506,0.00471491,3179.2,3179.1,5.3842]
[1764866553704,5.59051491,3179.2,3178.8,0.15726]
[1764866553905,10.5868,3178.6,3178.5,6.8478]
[1764866554113,2.37208838,3178.6,3178.1,14.0681]
[1764866555515,3.2078,3178.8,3178.5,5.3678]
[1764866555716,5.4189,3178.6,3178.2,1.3327]
[1764866555917,5.4189,3178.6,3178.1,3.2078]
[1764866556413,13.5852,3178.2,3178.1,3.2078]
[1764866556815,15.24198152,3178.2,3178.1,3.2078]
[1764866557018,13.5852,3178.2,3178.1,3.2078]
[1764866557321,5.4189,3177.7,3177.6,3.2078]
[1764866557819,4.65518152,3178.2,3177.6,8.5756]
[1764866558017,13.7946,3178.3,3177.7,0.15731]
[1764866558318,15.45138152,3178.3,3177.7,0.15731]
[1764866558617,1.65678152,3178.2,3177.7,0.15731]
[1764866558818,4.65518152,3178.2,3177.7,0.15731]
[1764866559223,4.65518152,3178.2,3177.6,3.2078]
[1764866559418,1.65562904,3178.2,3178.1,5.3678]
[1764866559617,43.7984,3178.2,3177.6,8.5756]
[1764866559918,1.65546087,3178.1,3177.6,8.5756]
[1764866561116,1.65546087,3178.2,3178.1,10.8603]
[1764866561317,10.5868,3178.2,3177.6,6.3584]
[1764866561506,10.5868,3177.7,3177.6,3.2078]
[1764866561819,40.8,3178.1,3177.6,8.5756]
[1764866562016,5.4189,3177.7,3177.6,8.5756]
[1764866562215,5.4189,3177.7,3177.0,1.60838714]
[1764866562216,16.16668838,3177.7,3177.0,4.81618714]
[1764866562417,2.9126,3177.6,3177.0,3.21148714]
[1764866563121,3.2078,3177.7,3177.0,4.99048714]
[1764866563716,3.2078,3177.7,3177.6,5.0979]
[1764866563917,1.65546087,3178.0,3177.9,5.0979]
[1764866564121,44.0078,3178.1,3177.9,5.0979]
[1764866564513,44.0078,3178.1,3178.0,5.0979]
[1764866565018,3.2078,3178.1,3178.0,9.9976]
[1764866565519,4.01262134,3178.1,3178.0,9.9976]
[1764866565818,0.80482134,3178.1,3178.0,10.1549]
[1764866566012,3.2078,3178.5,3178.4,9.9976]
[1764866566520,8.3111,3178.5,3178.4,5.0979]
[1764866566714,5.1033,3178.2,3177.6,3.1506]
[1764866567124,5.1033,3178.2,3177.6,7.9576]
[1764866568121,3.2078,3178.5,3178.1,9.9976]
[1764866568521,5.1033,3178.2,3177.9,3.2078]
[1764866568920,3.2078,3178.5,3178.4,5.0979]
[1764866569126,3.2078,3178.5,3178.4,9.9976]
[1764866570728,8.3111,3178.5,3178.4,5.0979]
[1764866571328,8.3111,3178.5,3178.2,0.15729]
[1764866572021,9.9631,3178.3,3177.5,3.36512]
[1764866572428,9.9631,3178.3,3177.6,3.1892]
[1764866573029,3.2078,3178.0,3177.6,3.1892]
[1764866573827,3.2078,3178.4,3177.6,3.1892]
[1764866574421,3.2078,3178.0,3177.5,3.36512]
[1764866574632,3.2078,3178.0,3177.5,8.4318]
[1764866574819,5.1033,3177.6,3177.5,8.4318]
[1764866575223,5.1033,3177.6,3177.5,3.2078]
[1764866575224,9.9631,3177.6,3177.5,3.2078]
[1764866575423,3.2078,3178.0,3177.5,3.2078]
[1764866575424,3.2078,3178.0,3177.5,8.3057]
[1764866577029,3.2078,3178.0,3177.9,9.9976]
[1764866577329,2.9126,3178.2,3177.5,13.36272]
[1764866577530,2.9126,3178.2,3177.6,3.1892]
[1764866577732,3.2078,3178.4,3177.6,3.1892]
[1764866577924,0.80259197,3178.3,3177.6,3.1892]
[1764866578119,10.76569197,3178.3,3177.6,3.34652]
[1764866578318,0.80259197,3178.2,3178.1,5.0979]
[1764866578524,3.2078,3178.4,3178.1,5.0979]
[1764866578930,5.1033,3178.2,3178.1,5.0979]
[1764866579126,5.1033,3178.2,3178.1,9.9976]
[1764866579628,3.2078,3178.4,3178.1,9.9976]
[1764866579925,5.1033,3178.2,3178.1,9.9976]
[1764866580131,9.9631,3178.2,3177.7,0.15731]
[1764866581119,3.2078,3178.4,3178.1,9.9976]
[1764866581325,13.1709,3178.4,3177.8,0.15731]
[1764866581825,5.1033,3177.9,3177.8,10.15491]
[1764866582021,5.1033,3177.6,3177.5,8.3057]
[1764866582221,9.9631,3177.1,3177.0,0.00368714]
[1764866582627,9.9631,3176.6,3176.2,3.2078]
[1764866582933,5.1033,3176.3,3176.2,3.2078]
[1764866583130,9.9631,3175.7,3175.6,3.2078]
[1764866583329,5.1033,3175.7,3175.2,3.2078]
[1764866583531,3.21252255,3175.8,3175.6,5.0979]
[1764866583733,44.01500705,3175.8,3175.6,0.00282699]
[1764866583933,10.26,3175.7,3175.6,0.00282699]
[1764866584330,10.26,3175.7,3175.0,1.572]
[1764866584632,3.2078,3175.2,3175.0,1.572]
[1764866585033,43.74400705,3175.8,3175.1,10.65913132]
[1764866585034,3.2078,3175.7,3175.1,10.65913132]
[1764866585235,3.2078,3175.7,3175.0,6.90553132]
[1764866585439,3.2078,3175.7,3175.1,0.00409096]
[1764866585629,3.2078,3175.3,3175.1,0.00409096]
[1764866585833,3.2078,3175.7,3175.2,8.1405]
[1764866586132,8.2463,3175.7,3175.2,13.03843]
[1764866586434,8.2463,3175.7,3175.1,0.00409096]
[1764866586435,5.0385,3175.2,3175.1,0.00409096]
[1764866586940,8.2463,3175.2,3175.1,0.24482228]
[1764866587148,3.2078,3175.6,3175.1,10.66322228]
[1764866587332,40.80720705,3175.8,3175.5,10.4184]
[1764866587527,40.80720705,3175.8,3175.7,5.0928]
[1764866587931,40.80720705,3175.8,3175.7,23.45881]
[1764866587932,0.00720705,3175.8,3175.7,23.45881]
[1764866588339,0.00720705,3175.8,3175.7,23.69954132]
[1764866588834,10.26720705,3175.8,3175.7,0.24073132]
[1764866589434,5.04570705,3175.8,3175.7,0.24073132]
[1764866589635,0.00720705,3175.8,3175.7,10.65913132]
[1764866589842,0.00720705,3175.8,3175.7,10.81654132]
[1764866590745,0.00720705,3175.8,3175.7,5.49094132]
[1764866591047,10.26720705,3175.8,3175.7,0.24073132]
[1764866591249,5.04570705,3175.8,3175.7,0.24073132]
[1764866591543,10.26720705,3175.8,3175.7,0.24073132]
[1764866591943,13.20400705,3175.8,3175.2,12.884]
[1764866592144,13.4678,3175.5,3175.4,0.24073132]
[1764866592934,13.4678,3175.5,3175.1,0.00409096]
[1764866593142,10.26,3175.4,3175.3,0.24073132]
[1764866593443,5.0385,3175.4,3175.3,0.24073132]
[1764866594333,0.00720705,3175.8,3175.4,10.4184]
[1764866594547,0.00720705,3175.8,3175.7,10.4184]
[1764866595547,0.00720705,3175.8,3175.7,10.57581]
[1764866596348,0.00720705,3175.8,3175.7,23.46081]
[1764866597240,0.00720705,3175.8,3175.7,10.57581]
[1764866597441,0.00720705,3175.8,3175.7,23.46081]
[1764866597943,0.00720705,3175.8,3175.7,10.57581]
[1764866598243,5.04570705,3175.8,3175.7,0.24073132]
[1764866598738,10.26720705,3175.8,3175.7,0.24073132]
[1764866599449,10.26,3175.5,3175.2,0.15743]
[1764866599749,5.0385,3175.5,3175.4,0.24073132]
[1764866599947,8.2463,3175.5,3175.4,0.24073132]
[1764866600146,8.2463,3175.5,3175.4,5.33353132]
[1764866600449,13.4678,3175.5,3175.4,0.24073132]
[1764866600938,13.4678,3175.5,3175.2,0.15743]
[1764866601140,10.26,3175.3,3175.2,0.39816132]
[1764866601339,10.26,3175.3,3175.2,0.24073132]
[1764866601538,13.1968,3175.2,3175.1,0.00409096]
[1764866601944,13.1968,3175.2,3175.1,0.24482228]
[1764866602250,13.1968,3175.2,3175.1,0.00409096]
[1764866602849,10.26,3174.7,3174.6,0.15747]
[1764866603051,13.4678,3174.7,3174.6,0.15747]
[1764866603447,13.4678,3174.7,3174.4,12.885]
[1764866603749,3.2078,3174.7,3174.6,10.4184]
[1764866603942,3.2078,3174.7,3174.6,13.62357]
[1764866604140,40.8,3175.4,3174.6,13.62357]
[1764866604141,3.2078,3175.1,3175.0,5.0928]
[1764866604544,8.2463,3175.1,3175.0,5.0928]
[1764866604854,10.26,3175.0,3174.9,0.15745]
[1764866605148,3.2078,3175.1,3175.0,10.4184]
[1764866605350,8.2463,3175.1,3175.0,5.0928]
[1764866605538,8.2463,3175.1,3174.9,0.15745]
[1764866605742,3.2078,3175.1,3175.0,10.4184]
[1764866605945,3.2078,3175.1,3175.0,10.57585]